bitfinex/quotes_SOLUSD_20220118
["timestamp","ask_amount","ask_price","bid_price","bid_amount"]
[1642493381775,0.25,140.12,140.04,0.25]
[1642493382166,0.25,140.12,140.05,10.7072]
[1642493382468,0.25,140.12,140.06,0.25]
[1642493383466,0.25,140.12,140.07,10.7058]
[1642493387472,0.25,140.12,140.05,10.7072]
[1642493387672,37.05967077,140.1,140.02,3.96354749]
[1642493387873,3.105,140.09,140.02,3.96354749]
[1642493388101,10.944,140.09,140.02,3.96354749]
[1642493388699,10.944,140.09,140.0,3.96354749]
[1642493388899,33.5352,140.09,140.0,3.96354749]
[1642493389498,44.246,140.09,140.0,3.96354749]
[1642493389699,44.246,140.09,140.01,10.7108]
[1642493391002,36.407,140.09,140.01,10.7108]
[1642493391201,25.6962,140.09,140.01,10.7108]
[1642493391600,2.855,140.09,140.02,0.25]
[1642493391802,37.05967077,140.1,140.04,10.7076]
[1642493392602,37.05967077,140.1,140.02,0.25]
[1642493392801,3.105,140.09,140.01,0.25]
[1642493393203,2.855,140.09,140.01,0.25]
[1642493393604,2.855,140.09,140.02,10.7094]
[1642493393901,63.28997077,140.1,140.02,10.7094]
[1642493394301,0.25,140.09,140.02,10.7094]
[1642493395203,2.856,140.08,140.02,10.7094]
[1642493395404,0.25,140.07,140.02,10.7094]
[1642493395606,11.0427606,140.07,140.02,10.7094]
[1642493396207,10.7927606,140.07,140.02,10.7094]
[1642493396408,10.7927606,140.07,140.04,10.7084]
[1642493396605,5.05249933,140.06,140.04,10.7084]
[1642493397005,5.05249933,140.06,140.0,10.28]
[1642493397205,5.05249933,140.06,140.01,0.25]
[1642493397407,5.05249933,140.06,140.0,10.7109]
[1642493397808,0.25,140.05,140.0,10.7109]
[1642493398109,0.25,140.05,139.98,3.96354749]
[1642493398309,8.33,140.05,139.98,3.96354749]
[1642493398510,8.33,140.05,139.98,20.67594749]
[1642493398713,14.33,140.05,139.98,6.0]
[1642493399210,37.05967077,140.04,139.97,83.51707902]
[1642493399410,0.25,140.03,139.97,83.51707902]
[1642493400311,3.107,140.03,139.97,83.51707902]
[1642493400509,3.107,140.03,139.97,94.23077902]
[1642493400910,2.857,140.03,139.97,94.23077902]
[1642493401313,37.05967077,140.04,139.98,0.25]
[1642493401709,37.05967077,140.04,139.99,10.7113]
[1642493401913,37.05967077,140.04,139.99,16.7113]
[1642493402911,37.05967077,140.04,139.99,10.7113]
[1642493403814,0.25,140.03,139.99,10.7113]
[1642493404011,0.25,140.03,139.98,10.7131]
[1642493404211,0.25,140.03,139.97,76.0536]
[1642493404413,1.19437677,140.01,139.97,66.45521617]
[1642493404611,34.0,139.99,139.96,3.96354749]
[1642493404814,23.0,139.97,139.93,5.91124871]
[1642493405013,8.373,139.97,139.93,5.91124871]
[1642493405214,0.25,139.96,139.93,5.91124871]
[1642493405814,0.25,139.96,139.89,45.9691]
[1642493406114,71.73,139.96,139.89,45.9691]
[1642493406317,3.108,139.95,139.89,45.9691]
[1642493406715,9.108,139.95,139.89,45.9691]
[1642493407115,25.1585,139.95,139.89,45.9691]
[1642493407414,48.0,139.93,139.89,0.0001]
[1642493407714,48.0,139.93,139.78,49.08070218]
[1642493407715,2.858,139.92,139.79,10.28]
[1642493407916,8.574,139.92,139.79,10.28]
[1642493408114,24.854,139.92,139.79,10.28]
[1642493408318,10.725,139.91,139.8,10.7269]
[1642493408515,84.62,139.9,139.8,10.7269]
[1642493408716,84.87,139.9,139.8,10.7269]
[1642493408918,90.87,139.9,139.8,10.7269]
[1642493409314,90.87,139.9,139.8,14.80213395]
[1642493410315,10.7271,139.88,139.81,4.07523395]
[1642493410515,2.86,139.87,139.81,4.07523395]
[1642493410716,7.554,139.87,139.81,4.07523395]
[1642493410915,2.86,139.86,139.81,4.07523395]
[1642493411116,3.11,139.86,139.81,4.07523395]
[1642493411330,9.11,139.86,139.81,4.07523395]
[1642493411832,3.11,139.86,139.77,4.07523395]
[1642493412023,0.25,139.86,139.78,0.25]
[1642493412424,0.25,139.87,139.78,0.25]
[1642493412629,2.86,139.86,139.78,0.25]
[1642493412823,0.25,139.85,139.78,0.25]
[1642493413024,2.86,139.87,139.78,0.25]
[1642493413227,2.86,139.88,139.77,0.25]
[1642493413626,10.7282,139.87,139.79,4.07523395]
[1642493414228,2.86,139.88,139.79,4.07523395]
[1642493414429,2.86,139.88,139.8,0.25]
[1642493414628,0.25,139.87,139.8,0.25]
[1642493415032,0.25,139.87,139.81,10.7261]
[1642493415428,0.25,139.87,139.81,14.80133395]
[1642493416127,0.25,139.87,139.82,0.25]
[1642493416328,0.25,139.88,139.82,4.32523395]
[1642493417739,0.25,139.88,139.82,0.25]
[1642493418137,0.25,139.88,139.82,10.9754]
[1642493418337,0.25,139.88,139.82,10.7254]
[1642493418737,0.25,139.88,139.83,4.07511625]
[1642493418937,2.86,139.9,139.84,0.25]
[1642493419141,10.28,139.94,139.84,10.9738]
[1642493419341,2.859,139.96,139.85,10.28]
[1642493419538,2.859,139.96,139.85,16.28]
[1642493419539,8.859,139.96,139.85,16.28]
[1642493419738,2.859,139.96,139.86,0.25]
[1642493419939,8.859,139.96,139.86,0.25]
[1642493420339,8.859,139.96,139.86,4.32421239]
[1642493420551,10.7231,139.93,139.86,4.32421239]
[1642493421342,10.7231,139.93,139.86,0.25]
[1642493421868,10.7221,139.95,139.86,10.9721]
[1642493422062,10.7221,139.95,139.88,2.03711334]
[1642493422063,2.859,139.94,139.88,2.03711334]
[1642493422762,0.25,139.93,139.88,2.03711334]
[1642493423163,13.8307,139.95,139.88,2.03711334]
[1642493423564,13.8307,139.95,139.8,24.024]
[1642493423565,58.0,139.94,139.8,24.024]
[1642493423763,3.109,139.93,139.85,4.07404896]
[1642493423964,10.7251,139.91,139.85,4.07404896]
[1642493424165,2.859,139.9,139.85,4.07404896]
[1642493424364,9.109,139.9,139.8,10.7263]
[1642493424565,44.8713,139.9,139.77,10.28]
[1642493424864,70.00525272,139.9,139.82,4.0754796]
[1642493425364,71.48,139.89,139.82,4.0754796]
[1642493425564,2.86,139.88,139.82,4.0754796]
[1642493425765,50.7121,139.88,139.82,4.0754796]
[1642493425965,50.7121,139.88,139.77,10.28]
[1642493426165,50.7121,139.88,139.78,0.25]
[1642493426768,10.7296,139.87,139.78,0.25]
[1642493426966,9.11,139.88,139.78,0.25]
[1642493427169,0.25,139.88,139.78,43.83265816]
[1642493427368,0.25,139.88,139.78,49.83265816]
[1642493427571,8.86,139.89,139.78,121.57265816]
[1642493427771,6.0,139.89,139.78,60.82095816]
[1642493428176,2.86,139.9,139.78,60.82095816]
[1642493428369,10.28,139.91,139.78,60.82095816]
[1642493428576,3.11,139.9,139.78,60.82095816]
[1642493428971,3.11,139.9,139.78,16.9783]
[1642493428972,13.8356,139.9,139.78,16.9783]
[1642493429274,19.8356,139.9,139.78,10.9783]
[1642493429869,19.8356,139.9,139.78,16.9783]
[1642493430070,19.8356,139.9,139.78,10.9783]
[1642493430972,25.1566,139.9,139.78,10.9783]
[1642493431174,37.22565272,139.9,139.78,10.9783]
[1642493431376,10.7279,139.87,139.78,10.9783]
[1642493431577,2.86,139.86,139.78,10.9783]
[1642493431780,9.11,139.86,139.78,10.9783]
[1642493433077,8.86,139.86,139.78,10.9783]
[1642493433275,6.0,139.86,139.78,17.2383]
[1642493433476,2.86,139.92,139.79,10.28]
[1642493433679,2.86,139.92,139.82,10.7248]
[1642493433882,0.25,139.91,139.83,0.25]
[1642493434080,0.25,139.91,139.82,10.7248]
[1642493434282,13.5846,139.9,139.79,10.28]
[1642493434480,13.5846,139.9,139.8,0.25]
[1642493434781,0.25,139.89,139.8,0.25]
[1642493434981,2.86,139.88,139.8,10.9763]
[1642493435582,2.86,139.91,139.8,17.2363]
[1642493435789,0.25,139.89,139.8,17.2363]
[1642493436082,2.86,139.91,139.84,10.7229]
[1642493436282,0.25,139.9,139.85,0.25]
[1642493436891,2.859,139.92,139.85,0.25]
[1642493437089,23.0405,139.93,139.83,41.9991]
[1642493437386,2.859,139.92,139.84,0.25]
[1642493437585,2.859,139.92,139.86,10.7215]
[1642493438185,0.25,139.91,139.86,10.7215]
[1642493438788,0.25,139.91,139.84,10.7233]
[1642493438987,2.859,139.9,139.75,59.251]
[1642493439192,2.859,139.9,139.78,10.28]
[1642493439396,0.25,139.89,139.78,16.79]
[1642493440093,13.8363,139.89,139.8,10.7263]
[1642493440292,19.8363,139.89,139.81,0.25]
[1642493441512,19.8363,139.89,139.8,0.25]
[1642493442713,19.8363,139.89,139.8,10.9767]
[1642493442912,19.8363,139.89,139.8,10.7267]
[1642493443113,16.9763,139.89,139.81,0.25]
[1642493443311,10.9763,139.89,139.79,0.25]
[1642493443511,2.86,139.88,139.79,0.25]
[1642493443712,10.7279,139.87,139.79,0.25]
[1642493443917,10.9779,139.87,139.79,0.25]
[1642493444112,2.86,139.86,139.76,10.53]
[1642493444321,0.25,139.85,139.77,0.25]
[1642493444517,0.25,139.85,139.74,35.7622]
[1642493444518,0.25,139.85,139.74,10.28]
[1642493444715,2.861,139.84,139.73,47.4221]
[1642493445014,10.7315,139.83,139.72,10.28]
[1642493445214,2.861,139.82,139.73,10.7323]
[1642493445616,0.25,139.81,139.73,10.7323]
[1642493446217,0.25,139.81,139.74,0.25]
[1642493446419,10.7307,139.83,139.73,37.67547812]
[1642493446617,0.25,139.82,139.73,37.41547812]
[1642493446817,6.603,139.82,139.72,10.28]
[1642493447018,2.861,139.81,139.72,10.28]
[1642493447420,10.735,139.79,139.72,10.28]
[1642493447619,19.141,139.79,139.72,10.28]
[1642493447819,0.25,139.78,139.72,10.28]
[1642493448017,2.862,139.81,139.72,46.86188666]
[1642493448217,2.861,139.83,139.72,52.86188666]
[1642493448423,0.25,139.8,139.73,0.25]
[1642493448623,0.25,139.8,139.73,10.9819]
[1642493448823,0.25,139.8,139.73,17.2419]
[1642493449022,0.25,139.8,139.73,6.25]
[1642493449625,0.25,139.83,139.73,0.25]
[1642493449824,2.861,139.82,139.73,6.25]
[1642493450025,2.861,139.82,139.73,6.0]
[1642493450224,0.25,139.81,139.73,6.0]
[1642493450426,0.25,139.81,139.71,0.25]
[1642493451432,10.7334,139.8,139.71,0.25]
[1642493451838,0.25,139.79,139.71,0.25]
[1642493452042,5.968,139.79,139.71,0.25]
[1642493452536,5.968,139.79,139.7,16.28]
[1642493452738,10.7358,139.77,139.7,10.28]
[1642493452938,10.7358,139.77,139.66,35.68]
[1642493452939,2.862,139.76,139.66,35.68]
[1642493453240,9.208,139.76,139.66,35.68]
[1642493453437,15.208,139.76,139.66,35.68]
[1642493453939,15.208,139.76,139.64,10.28]
[1642493454137,14.958,139.76,139.64,10.28]
[1642493454337,10.7412,139.73,139.64,10.28]
[1642493454538,10.7412,139.73,139.66,48.15404466]
[1642493454740,10.28,139.78,139.66,48.15404466]
[1642493454940,10.28,139.81,139.67,12.02053524]
[1642493455139,10.28,139.83,139.67,12.28053524]
[1642493455340,10.7368,139.81,139.67,36.28902484]
[1642493455537,2.862,139.82,139.68,72.97053524]
[1642493455737,2.862,139.83,139.69,45.58942629]
[1642493455937,2.862,139.85,139.69,47.32996153]
[1642493456137,49.2553,139.84,139.69,53.58996153]
[1642493456341,10.7362,139.82,139.7,1.49053524]
[1642493456637,2.862,139.81,139.7,11.77053524]
[1642493456840,2.862,139.83,139.71,0.25]
[1642493457040,0.25,139.8,139.71,0.25]
[1642493457239,2.862,139.79,139.71,0.25]
[1642493457440,10.7393,139.78,139.71,0.25]
[1642493457638,0.25,139.78,139.71,0.25]
[1642493457938,0.25,139.78,139.69,0.25]
[1642493458338,2.862,139.77,139.66,11.77495147]
[1642493458638,11.572,139.77,139.65,59.7228]
[1642493458837,0.25,139.76,139.65,70.0028]
[1642493459038,0.25,139.76,139.65,79.79365911]
[1642493459463,0.25,139.76,139.65,78.29870764]
[1642493459670,2.863,139.75,139.65,78.29870764]
[1642493459864,0.25,139.74,139.65,60.25590764]
[1642493460066,3.113,139.77,139.65,60.25590764]
[1642493460264,3.113,139.77,139.66,0.25]
[1642493461067,3.113,139.77,139.65,16.28]
[1642493461068,9.113,139.77,139.65,10.28]
[1642493461267,9.113,139.77,139.63,10.28]
[1642493461268,10.28,139.76,139.63,10.28]
[1642493461571,2.863,139.75,139.63,10.28]
[1642493461867,10.7425,139.74,139.63,10.28]
[1642493462064,2.863,139.73,139.63,10.28]
[1642493462271,9.113,139.73,139.63,10.28]
[1642493462667,71.48,139.72,139.61,8.16051519]
[1642493462864,10.7458,139.7,139.61,8.16051519]
[1642493463163,2.864,139.69,139.61,8.16051519]
[1642493463364,10.28,139.68,139.61,8.16051519]
[1642493463664,2.864,139.67,139.56,9.66985271]
[1642493463864,27.1461,139.67,139.53,10.28]
[1642493464066,22.9857,139.67,139.55,1.49495147]
[1642493464264,0.25,139.67,139.55,1.49495147]
[1642493464465,0.25,139.67,139.56,0.25]
[1642493464864,0.25,139.67,139.57,1.49495147]
[1642493465269,8.864,139.69,139.58,0.25]
[1642493465965,2.864,139.69,139.58,12.48785147]
[1642493466164,2.864,139.7,139.59,41.15488596]
[1642493466365,2.864,139.7,139.6,0.25]
[1642493466566,2.864,139.71,139.6,0.25]
[1642493466770,10.28,139.72,139.6,0.25]
[1642493466970,10.28,139.72,139.61,1.49495147]
[1642493467170,10.28,139.72,139.64,10.7379]
[1642493467370,10.28,139.72,139.65,0.25]
[1642493467570,10.28,139.72,139.65,35.57106873]
[1642493468069,10.28,139.72,139.65,0.25]
[1642493468479,2.863,139.74,139.64,10.7384]
[1642493468671,50.1736,139.75,139.65,0.25]
[1642493468871,0.25,139.73,139.65,0.25]
[1642493469673,2.863,139.72,139.65,0.25]
[1642493469874,0.25,139.71,139.62,0.25]
[1642493470276,0.25,139.71,139.59,36.40185147]
[1642493470474,2.864,139.7,139.59,10.28]
[1642493470873,0.25,139.69,139.59,10.28]
[1642493471075,2.864,139.68,139.59,10.28]
[1642493471277,2.864,139.71,139.59,17.77214586]
[1642493471478,10.28,139.72,139.59,17.77214586]
[1642493471678,10.28,139.72,139.6,0.25]
[1642493471877,10.28,139.72,139.61,10.7404]
[1642493472076,10.28,139.72,139.61,48.24350435]
[1642493472277,16.28,139.72,139.62,0.25]
[1642493472477,2.863,139.71,139.61,48.24350435]
[1642493472879,0.25,139.7,139.61,10.7404]
[1642493473275,0.25,139.7,139.59,10.7419]
[1642493473478,2.864,139.69,139.59,10.7419]
[1642493473877,0.25,139.68,139.6,0.25]
[1642493474077,0.25,139.68,139.59,10.7419]
[1642493474078,2.864,139.67,139.59,10.7419]
[1642493474279,2.864,139.67,139.6,0.25]
[1642493474476,2.864,139.67,139.6,38.74823301]
[1642493474877,2.864,139.67,139.6,49.48973301]
[1642493475077,25.3762,139.7,139.6,49.48973301]
[1642493475279,0.25,139.69,139.6,49.48973301]
[1642493475483,2.864,139.68,139.6,49.48973301]
[1642493475879,31.41,139.71,139.6,55.74973301]
[1642493476088,28.546,139.71,139.6,67.52627635]
[1642493476278,22.546,139.71,139.6,67.52627635]
[1642493476479,2.864,139.73,139.6,67.52627635]
[1642493476780,2.863,139.74,139.6,67.52627635]
[1642493476979,2.863,139.74,139.6,73.64794986]
[1642493477179,2.863,139.74,139.61,71.48]
[1642493477379,2.863,139.74,139.65,10.7364]
[1642493477779,0.25,139.73,139.65,10.7364]
[1642493478010,2.863,139.72,139.65,10.7364]
[1642493478180,9.809,139.72,139.62,0.25]
[1642493478380,0.25,139.71,139.62,0.25]
[1642493478581,2.863,139.7,139.62,0.25]
[1642493478781,2.863,139.7,139.61,10.7405]
[1642493478782,0.25,139.69,139.61,10.7405]
[1642493479183,2.863,139.7,139.61,57.25419115]
[1642493479584,2.863,139.7,139.61,63.25419115]
[1642493479785,0.25,139.69,139.61,63.25419115]
[1642493479985,0.25,139.69,139.61,16.7405]
[1642493480185,6.885,139.69,139.61,10.7405]
[1642493480385,6.885,139.69,139.6,6.12167351]
[1642493480587,2.864,139.68,139.6,6.12167351]
[1642493480786,0.25,139.67,139.6,6.12167351]
[1642493481388,0.25,139.67,139.57,6.12167351]
[1642493481587,0.25,139.67,139.57,12.12167351]
[1642493482688,2.864,139.66,139.58,10.7433]
[1642493482886,0.25,139.65,139.58,6.25]
[1642493483090,0.25,139.65,139.58,6.0]
[1642493483289,0.25,139.65,139.57,6.12167351]
[1642493483492,2.865,139.64,139.57,6.12167351]
[1642493483688,60.0,139.62,139.55,8.16316002]
[1642493483888,45.0,139.6,139.47,51.15176434]
[1642493484089,2.866,139.59,139.47,51.15176434]
[1642493484289,17.89509821,139.59,139.47,51.15176434]
[1642493484488,60.0,139.57,139.47,51.15176434]
[1642493484688,0.30930138,139.55,139.43,23.20764651]
[1642493484889,13.147,139.54,139.43,23.20764651]
[1642493485288,0.25,139.53,139.43,23.20764651]
[1642493485519,0.25,139.53,139.41,16.33100559]
[1642493485520,13.147,139.52,139.41,16.33100559]
[1642493485724,10.28,139.52,139.41,16.33100559]
[1642493486323,10.28,139.52,139.42,49.02993996]
[1642493486516,10.28,139.52,139.42,50.55457515]
[1642493486716,26.8084,139.56,139.42,50.55457515]
[1642493486917,10.28,139.55,139.43,1.52463519]
[1642493487116,10.53,139.55,139.43,12.52873519]
[1642493487416,10.53,139.55,139.43,18.52873519]
[1642493487715,10.53,139.55,139.43,18.78873519]
[1642493487916,10.28,139.55,139.43,18.78873519]
[1642493488118,10.28,139.55,139.44,1.54053142]
[1642493488318,10.28,139.55,139.45,36.8865531]
[1642493488817,10.28,139.55,139.45,6.25]
[1642493489216,10.28,139.55,139.45,0.25]
[1642493489416,10.28,139.55,139.45,1.79053142]
[1642493489616,10.28,139.55,139.45,1.54053142]
[1642493489817,2.867,139.54,139.46,0.25]
[1642493490016,10.28,139.53,139.42,49.43123821]
[1642493490216,2.867,139.56,139.46,0.25]
[1642493490417,8.61,139.55,139.46,0.25]
[1642493491416,8.61,139.55,139.47,54.152199]
[1642493491620,8.61,139.55,139.47,60.152199]
[1642493491822,8.61,139.59,139.48,0.25]
[1642493492016,77.6723,139.64,139.48,0.25]
[1642493492017,8.61,139.63,139.48,13.0587401]
[1642493492217,8.61,139.63,139.49,8.61]
[1642493492417,8.61,139.63,139.5,36.07162896]
[1642493492618,2.866,139.66,139.51,10.7445]
[1642493492818,2.866,139.66,139.52,0.25]
[1642493493018,2.866,139.66,139.52,8.86]
[1642493493224,2.866,139.66,139.53,46.30266455]
[1642493493423,2.866,139.66,139.53,54.91266455]
[1642493493626,2.866,139.66,139.56,10.7419]
[1642493493826,2.866,139.66,139.57,0.25]
[1642493494023,2.866,139.66,139.56,63.00650463]
[1642493494024,2.866,139.66,139.56,52.26460463]
[1642493494227,2.866,139.66,139.56,6.0]
[1642493494425,2.865,139.67,139.56,6.0]
[1642493494626,2.865,139.67,139.55,41.8062]
[1642493494829,0.25,139.66,139.58,10.7426]
[1642493495026,2.864,139.65,139.58,10.7426]
[1642493495429,0.25,139.64,139.58,10.7426]
[1642493496531,2.865,139.63,139.56,10.7443]
[1642493496731,2.865,139.63,139.53,8.61]
[1642493496732,2.865,139.65,139.53,8.61]
[1642493496931,0.25,139.62,139.53,8.61]
[1642493497133,2.865,139.61,139.53,8.61]
[1642493497334,0.25,139.6,139.53,8.61]
[1642493497728,0.25,139.6,139.53,10.747]
[1642493497930,0.25,139.6,139.53,16.747]
[1642493498529,0.25,139.63,139.53,16.747]
[1642493498831,2.865,139.62,139.53,10.747]
[1642493499230,0.25,139.61,139.53,10.747]
[1642493499430,2.865,139.6,139.53,10.747]
[1642493499629,9.977,139.6,139.5,8.61]
[1642493499830,0.25,139.59,139.5,6.0]
[1642493500031,2.866,139.58,139.5,6.0]
[1642493500231,2.866,139.58,139.46,113.86247256]
[1642493500430,0.25,139.57,139.46,65.68297256]
[1642493501043,0.25,139.57,139.47,0.25]
[1642493501240,0.25,139.57,139.48,10.7504]
[1642493501443,0.25,139.58,139.48,10.7504]
[1642493501641,0.25,139.58,139.49,0.25]
[1642493501840,0.25,139.58,139.46,8.61]
[1642493502039,2.866,139.57,139.44,4.03776377]
[1642493502240,0.25,139.56,139.46,36.74186161]
[1642493502440,0.25,139.56,139.44,10.03776377]
[1642493502640,2.867,139.55,139.44,10.03776377]
[1642493502840,0.25,139.54,139.44,10.03776377]
[1642493503140,0.25,139.54,139.44,20.79126377]
[1642493503340,0.25,139.54,139.45,49.41513641]
[1642493503742,0.25,139.54,139.45,55.41513641]
[1642493503945,0.25,139.54,139.45,55.67513641]
[1642493504140,2.867,139.58,139.45,55.67513641]
[1642493504141,0.25,139.57,139.47,10.7508]
[1642493504369,0.25,139.57,139.45,6.0]
[1642493504570,2.867,139.56,139.45,6.0]
[1642493504767,0.25,139.55,139.43,16.14864801]
[1642493504968,2.867,139.54,139.44,0.25]
[1642493505169,2.867,139.56,139.45,10.7527]
[1642493505369,2.867,139.56,139.46,0.25]
[1642493505568,24.113,139.57,139.46,0.25]
[1642493506170,2.867,139.58,139.46,0.25]
[1642493506370,32.6384,139.59,139.47,12.28994801]
[1642493506574,0.25,139.57,139.47,10.7513]
[1642493506871,2.866,139.56,139.47,10.7513]
[1642493507073,3.117,139.58,139.47,50.77371633]
[1642493507271,3.117,139.58,139.47,10.7513]
[1642493508175,3.117,139.58,139.48,34.8736896]
[1642493508475,2.867,139.58,139.51,10.7472]
[1642493508675,27.7824,139.61,139.51,10.7472]
[1642493508876,33.7824,139.61,139.51,10.7472]
[1642493509276,33.7824,139.61,139.51,54.37847429]
[1642493509675,27.7824,139.61,139.52,0.25]
[1642493509875,27.7824,139.61,139.54,10.7457]
[1642493509876,24.9164,139.61,139.54,10.7457]
[1642493510078,24.9164,139.61,139.54,49.72635311]
[1642493510277,24.9164,139.61,139.54,10.7457]
[1642493510476,0.25,139.6,139.54,10.7457]
[1642493510677,0.25,139.6,139.48,8.61]
[1642493510878,0.25,139.6,139.48,12.64776377]
[1642493510879,2.866,139.59,139.48,12.64776377]
[1642493511278,0.25,139.58,139.48,48.55991949]
[1642493511478,2.866,139.57,139.48,48.55991949]
[1642493511679,0.25,139.58,139.48,48.55991949]
[1642493512075,0.25,139.58,139.49,10.7501]
[1642493512279,0.25,139.59,139.5,0.25]
[1642493512877,24.9164,139.61,139.5,0.25]
[1642493512878,0.25,139.6,139.5,0.25]
[1642493513277,24.9164,139.61,139.5,0.25]
[1642493513478,24.9164,139.61,139.49,0.25]
[1642493513677,24.9164,139.61,139.52,10.7469]
[1642493513878,24.9164,139.61,139.53,0.25]
[1642493514078,2.866,139.62,139.53,0.25]
[1642493514281,2.865,139.63,139.53,0.25]
[1642493515082,2.865,139.63,139.55,10.7447]
[1642493515284,4.39672284,139.66,139.56,46.56091619]
[1642493515482,4.39672284,139.66,139.53,8.61]
[1642493515882,10.39672284,139.66,139.53,14.61]
[1642493516083,10.39672284,139.66,139.55,10.7452]
[1642493516284,0.25,139.65,139.55,10.7452]
[1642493516483,2.865,139.64,139.56,45.97599944]
[1642493516886,0.25,139.63,139.56,45.97599944]
[1642493517085,0.25,139.63,139.58,10.7435]
[1642493517284,0.25,139.63,139.59,48.48856381]
[1642493517885,0.25,139.64,139.53,80.09]
[1642493518084,0.25,139.64,139.54,0.25]
[1642493518885,0.25,139.64,139.56,35.8056]
[1642493519384,0.25,139.64,139.53,14.61]
[1642493519586,0.25,139.64,139.54,0.25]
[1642493519884,2.865,139.63,139.51,4.03776377]
[1642493520084,29.0773,139.63,139.51,4.03776377]
[1642493520284,0.25,139.62,139.51,4.03776377]
[1642493520584,2.866,139.61,139.51,4.03776377]
[1642493520785,0.25,139.6,139.51,4.03776377]
[1642493521185,0.25,139.6,139.52,10.7477]
[1642493521587,0.25,139.6,139.51,4.03776377]
[1642493521784,2.866,139.59,139.47,6.1009431]
[1642493521985,2.866,139.59,139.46,4.03776377]
[1642493522189,2.866,139.59,139.48,10.751]
[1642493522190,0.25,139.58,139.48,10.751]
[1642493522384,2.866,139.57,139.48,7.1149891]
[1642493522784,0.25,139.56,139.48,7.1149891]
[1642493522984,2.866,139.58,139.49,0.25]
[1642493523184,2.866,139.59,139.49,0.25]
[1642493523384,56.1802,139.6,139.51,10.748]
[1642493523586,0.25,139.58,139.51,10.748]
[1642493523785,0.25,139.58,139.52,0.25]
[1642493523984,62.1802,139.6,139.52,0.25]
[1642493524184,62.1802,139.6,139.49,35.8264]
[1642493524185,0.25,139.59,139.49,35.8264]
[1642493524389,0.25,139.59,139.52,10.7484]
[1642493525484,0.25,139.59,139.49,35.8264]
[1642493525485,0.25,139.59,139.5,10.7493]
[1642493525687,2.866,139.58,139.5,10.7493]
[1642493525884,0.25,139.57,139.5,10.7493]
[1642493527186,8.866,139.58,139.5,10.7493]
[1642493527387,6.0,139.58,139.5,10.7493]
[1642493527584,6.0,139.58,139.51,42.20046906]
[1642493527785,8.866,139.59,139.52,10.7479]
[1642493527987,6.0,139.59,139.52,10.7479]
[1642493528186,6.0,139.59,139.53,0.25]
[1642493528387,8.866,139.63,139.53,0.25]
[1642493528788,8.866,139.63,139.54,10.7461]
[1642493528789,0.25,139.62,139.54,10.7461]
[1642493529588,0.25,139.62,139.55,0.25]